bitfinex-derivatives/quotes_ETHF0:USTF0_20250528
["timestamp","ask_amount","ask_price","bid_price","bid_amount"]
[1748439744275,0.74474,2684.2,2684.1,1.35688006]
[1748439744574,3.2078,2684.7,2683.9,4.44299295]
[1748439744575,0.74479,2684.0,2683.9,4.44299295]
[1748439745071,0.74475,2684.2,2683.9,4.44299295]
[1748439745273,0.74479,2684.0,2683.9,4.44299295]
[1748439745675,4.311,2684.3,2683.9,4.44299295]
[1748439745676,0.74478,2684.1,2683.9,4.44299295]
[1748439745976,0.74476,2684.2,2683.9,4.44299295]
[1748439746169,0.74464,2684.6,2684.2,0.74472]
[1748439746475,0.74464,2684.6,2684.3,4.4595]
[1748439746872,0.74466,2684.5,2684.3,4.4595]
[1748439747180,4.31659295,2684.8,2684.3,4.4595]
[1748439747476,4.31659295,2684.8,2684.6,3.2078]
[1748439747670,0.00559295,2684.8,2684.6,3.95242]
[1748439747875,0.00559295,2684.8,2684.7,1.9963]
[1748439748377,0.00559295,2684.8,2684.7,2.6679]
[1748439749679,0.00559295,2684.8,2684.7,1.9233]
[1748439749972,0.00559295,2684.8,2684.7,1.2517]
[1748439749973,0.75016295,2684.8,2684.7,1.2517]
[1748439750175,8.21339295,2684.8,2684.2,3.2078]
[1748439750477,0.74471,2684.3,2684.2,4.4532]
[1748439750673,5.0567,2684.4,2684.2,4.4532]
[1748439750875,3.95797295,2684.8,2684.4,0.74468]
[1748439751178,4.31759295,2684.8,2684.5,4.4402]
[1748439751475,0.74463,2684.6,2684.5,4.4402]
[1748439751780,0.74463,2684.6,2684.5,1.2324]
[1748439752175,0.74474,2684.2,2684.1,3.8597]
[1748439752585,0.74474,2684.2,2684.1,3.2078]
[1748439753085,0.74479,2684.0,2683.9,0.00559295]
[1748439753983,4.312,2684.3,2684.0,0.74478]
[1748439753984,0.74471,2684.3,2684.0,0.74478]
[1748439754181,4.313,2684.2,2684.1,2.04037]
[1748439754573,4.313,2684.2,2684.1,1.2956]
[1748439755377,5.05774,2684.2,2684.1,1.2956]
[1748439755577,0.74479,2684.0,2683.9,0.00559295]
[1748439757290,4.3567,2684.4,2683.9,0.00559295]
[1748439757479,4.3567,2684.4,2684.0,3.2078]
[1748439757480,4.313,2684.3,2684.0,3.2078]
[1748439757782,4.313,2684.3,2684.2,0.74474]
[1748439758081,0.0437,2684.4,2684.1,1.2527]
[1748439758284,0.0437,2684.4,2684.3,3.95251]
[1748439758584,3.21339295,2684.8,2684.2,0.6243]
[1748439758784,0.7446,2684.7,2684.4,0.74466]
[1748439758985,0.7446,2684.7,2684.5,1.99735]
[1748439759182,0.75018295,2684.8,2684.5,1.99735]
[1748439759389,0.00559295,2684.8,2684.5,1.32733908]
[1748439759595,0.00559295,2684.8,2684.7,0.7446]
[1748439760082,0.00559295,2684.8,2684.7,1.9593]
[1748439761486,0.75016295,2684.8,2684.7,1.2147]
[1748439761779,0.7446,2684.7,2684.6,3.2078]
[1748439761984,0.74463,2684.6,2684.5,0.07463908]
[1748439763181,5.74463,2684.6,2684.5,1e-08]
[1748439763387,7.07263,2684.6,2684.5,1e-08]
[1748439763786,0.74479,2684.0,2683.9,0.00559295]
[1748439764089,8.26159,2684.0,2683.9,0.00559295]
[1748439764291,49.06159,2684.0,2683.9,0.00559295]
[1748439764480,0.74495,2683.5,2683.3,1.2557]
[1748439764682,4.309,2683.5,2683.3,2.00068]
[1748439764883,4.309,2683.5,2683.4,0.74496]
[1748439765089,4.309,2683.5,2683.4,2.00066]
[1748439765685,41.54479,2684.0,2683.4,4.4635]
[1748439765988,4.31,2683.9,2683.7,0.74486]
[1748439766189,8.26253,2684.3,2684.0,0.74478]
[1748439766382,7.5178,2684.3,2684.1,1.2697]
[1748439766578,37.542,2684.5,2684.1,4.4775]
[1748439766781,41.852,2684.5,2684.1,4.4775]
[1748439766983,0.00559295,2684.8,2684.7,0.7446]
[1748439767188,0.00559295,2684.8,2684.7,3.9524]
[1748439767886,0.00559295,2684.8,2684.7,0.7446]
[1748439768693,0.00559295,2684.8,2684.7,3.9524]
[1748439768890,0.00559295,2684.8,2684.7,3.2078]
[1748439769093,0.00559295,2684.8,2684.7,3.9524]
[1748439769984,0.00559295,2684.8,2684.7,3.2078]
[1748439770186,0.75016295,2684.8,2684.7,3.2078]
[1748439770492,0.00559295,2684.8,2684.7,3.28243908]
[1748439770798,0.00559295,2684.8,2684.7,4.02703908]
[1748439771395,0.75016295,2684.8,2684.7,3.28243908]
[1748439771986,0.75016295,2684.8,2684.7,0.07463908]
[1748439771987,3.95796295,2684.8,2684.7,0.07463908]
[1748439772183,8.95796295,2684.8,2684.7,0.07463908]
[1748439772391,3.95796295,2684.8,2684.7,0.07463908]
[1748439772790,8.95796295,2684.8,2684.7,0.07463908]
[1748439773594,0.74479,2684.0,2683.9,5.45989448]
[1748439773790,0.74485,2683.8,2683.7,1.01369448]
[1748439773989,6.171,2684.0,2683.6,2.37057454]
[1748439773990,0.74488,2683.7,2683.6,2.37057454]
[1748439774185,1.97558,2683.7,2683.6,2.37057454]
[1748439774695,1.97558,2683.7,2683.6,1.01369448]
[1748439774903,0.7449,2683.6,2683.5,4.4462]
[1748439775193,1.9756,2683.6,2683.5,4.4462]
[1748439776092,0.74493,2683.5,2683.4,0.68021858]
[1748439776392,0.74493,2683.5,2683.2,4.22708743]
[1748439776393,0.74499,2683.3,2683.2,0.00559295]
[1748439776796,0.74507,2683.0,2682.9,4.90171306]
[1748439776988,5.05507,2683.0,2682.9,1.01369448]
[1748439777398,0.7451,2682.9,2682.8,0.68021858]
[1748439777691,0.74516,2682.7,2682.6,0.68021858]
[1748439777894,0.74519,2682.6,2682.5,5.11921858]
[1748439778090,1.31659295,2682.9,2682.5,5.11921858]
[1748439778297,0.74517,2682.7,2682.5,4.439]
[1748439778491,0.85695,2682.8,2682.5,3.953]
[1748439778687,0.1118,2682.8,2682.5,3.2078]
[1748439778891,2.14223,2682.8,2682.6,1.3008]
[1748439779094,0.74516,2682.7,2682.6,1.3008]
[1748439779291,1.3971,2682.8,2682.6,1.3008]
[1748439779292,2.14225,2682.8,2682.6,1.3008]
[1748439779489,1.3971,2682.8,2682.6,1.3008]
[1748439779800,0.74516,2682.7,2682.6,1.3008]
[1748439780397,1.8629,2682.7,2682.3,0.68021858]
[1748439780696,0.74524,2682.4,2682.3,0.68021858]
[1748439780998,5.05624,2682.4,2682.3,1.3008]
[1748439781595,4.311,2682.4,2682.3,2.04607]
[1748439781796,4.311,2682.4,2682.3,1.3008]
[1748439782000,4.311,2682.4,2682.3,2.04607]
[1748439782699,5.05624,2682.4,2682.3,1.3008]
[1748439783196,4.73725,2682.8,2682.3,1.3008]
[1748439783400,4.312,2682.7,2682.5,0.74519]
[1748439783595,0.1118,2682.8,2682.7,0.74516]
[1748439784298,0.74516,2682.7,2682.6,1.3218]
[1748439784503,0.74519,2682.6,2682.5,3.2078]
[1748439784705,0.74521,2682.5,2682.4,1.2258]
[1748439784999,5.05721,2682.6,2682.4,1.2258]
[1748439785205,0.74521,2682.5,2682.4,1.2258]
[1748439785608,2.03671,2682.5,2682.4,1.2258]
[1748439786204,0.74524,2682.4,2682.3,0.07463908]
[1748439787199,5.05724,2682.4,2682.3,0.07463908]
[1748439787397,6.34874,2682.4,2682.3,0.07463908]
[1748439788804,5.05724,2682.4,2682.3,0.07463908]
[1748439789306,0.74524,2682.4,2682.3,0.07463908]
[1748439789509,5.05724,2682.4,2682.3,0.07463908]
[1748439790304,0.74544,2681.7,2681.6,3.2078]
[1748439790906,0.74552,2681.4,2681.3,3.8194]
[1748439791108,0.74551,2681.5,2681.3,4.56493]
[1748439791510,5.6151,2681.8,2681.4,1.3234]
[1748439791707,0.74549,2681.5,2681.4,1.3234]
[1748439793007,5.05549,2681.5,2681.4,1.3234]
[1748439793211,5.07128,2681.9,2681.4,1.3234]
[1748439793413,0.74548,2681.6,2681.5,0.74549]
[1748439793712,4.31,2681.8,2681.4,2.0689]
[1748439793914,0.74549,2681.5,2681.4,2.06892]
[1748439794218,0.74549,2681.5,2681.4,1.3234]
[1748439795307,1.368,2681.6,2680.8,0.6155]
[1748439795308,1.86384,2681.4,2681.0,3.2078]
[1748439795518,0.74563,2681.0,2680.9,1.3308]
[1748439796319,0.74571,2680.7,2680.6,3.2078]
[1748439796722,0.74577,2680.5,2680.4,0.6158]
[1748439797023,4.31,2680.8,2680.4,1.3616]
[1748439797225,0.74577,2680.6,2680.4,0.6158]
[1748439797418,4.31,2680.8,2680.4,1.36159]
[1748439797726,0.74574,2680.6,2680.5,1.2197]
[1748439800526,5.05674,2680.6,2680.5,1.2197]
[1748439801623,0.74573,2680.7,2680.5,1.2197]
[1748439801827,5.05774,2680.6,2680.5,1.96545]
[1748439802229,5.05774,2680.6,2680.5,1.2197]
[1748439802727,5.05774,2680.6,2680.5,1.96547]
[1748439803236,5.05774,2680.6,2680.5,1.2197]
[1748439803631,0.74577,2680.5,2680.4,0.07463908]
[1748439803929,2.06517,2680.5,2680.4,0.07463908]
[1748439804531,5.27297,2680.5,2680.4,0.07463908]
[1748439804719,1.8645,2680.4,2679.5,0.68021858]
[1748439804923,0.74602,2679.6,2679.5,2.00191858]
[1748439805622,0.74602,2679.6,2679.5,0.68021858]
[1748439806234,0.74605,2679.5,2679.4,3.88801858]
[1748439806529,2.03275,2679.5,2679.4,3.2078]
[1748439806725,0.74613,2679.2,2679.1,4.4415]
[1748439806930,0.74613,2679.2,2679.1,3.2078]
[1748439807129,0.74622,2678.9,2678.8,3.2078]
[1748439807728,1.2867,2679.1,2678.4,3.88801858]
[1748439808029,0.74625,2678.8,2678.4,3.88801858]
[1748439808228,5.5997,2679.0,2678.4,3.88801858]
[1748439808429,0.74631,2678.6,2678.4,3.88801858]
[1748439808624,0.74631,2678.6,2678.4,3.2078]
[1748439808825,5.5997,2679.0,2678.4,3.2078]
[1748439809133,0.74622,2678.9,2678.7,3.95406]
[1748439809334,4.313,2678.9,2678.7,3.2078]
[1748439809528,4.313,2678.9,2678.7,3.95406]
[1748439809829,4.465,2679.2,2678.7,3.95406]
[1748439809830,4.465,2679.2,2678.9,0.74621]
[1748439810030,5.5399,2679.1,2678.7,3.2078]
[1748439810227,0.74624,2678.8,2678.7,3.2078]
[1748439811031,12.5218,2678.8,2676.7,1.67926819]
[1748439811235,0.74716,2675.5,2675.4,3.42383837]
[1748439811427,0.747,2676.1,2676.0,4.5e-06]
[1748439811628,0.00560653,2675.7,2674.7,5.37786643]
[1748439811830,3.21340653,2675.7,2674.8,4.02992194]
[1748439812029,3.21340653,2675.7,2674.7,5.37786643]
[1748439812030,3.2078,2675.5,2674.9,0.07476915]
[1748439812230,3.2078,2675.2,2674.9,5.07476915]
[1748439812538,3.2078,2675.2,2674.9,0.07476915]
[1748439812841,3.2078,2675.2,2674.9,5.07476915]
[1748439813930,3.2078,2675.2,2674.9,0.07476915]
[1748439813931,0.7473,2675.1,2674.9,0.07476915]
[1748439814133,0.7473,2675.0,2674.9,0.07476915]
[1748439815135,0.7473,2675.0,2674.9,0.14940823]
[1748439815337,5.8623,2675.0,2674.9,0.14940823]
[1748439816035,0.74751,2674.3,2673.8,0.6728]
[1748439816231,3.2078,2673.9,2673.8,0.6728]
[1748439816933,3.2078,2673.9,2673.2,3.2078]
[1748439817132,3.2078,2673.9,2673.6,0.74768]
[1748439817637,3.2078,2673.9,2673.3,0.6233]
[1748439817937,3.2078,2673.9,2673.8,0.74764]
[1748439818131,3.2078,2673.9,2673.3,5.0]
[1748439818333,3.2078,2673.9,2673.8,0.74764]
[1748439818540,3.2078,2673.9,2673.7,0.74765]
[1748439818737,3.2078,2673.9,2673.8,0.74764]
[1748439818939,3.2078,2673.9,2673.3,10.119]
[1748439819444,3.2078,2673.9,2673.6,0.74768]
[1748439819640,3.2078,2673.9,2673.3,5.119]
[1748439819940,3.2078,2673.9,2673.3,4.20672]
[1748439820236,3.2078,2673.9,2673.2,3.8311]
[1748439820439,0.74768,2673.7,2673.2,3.8311]
[1748439820643,3.95542,2673.9,2673.2,3.8311]
[1748439820939,3.2078,2673.9,2673.2,3.8311]
[1748439821140,3.95543,2673.9,2673.3,1.2877]
[1748439821340,3.95542,2673.9,2673.7,0.74764]
[1748439821536,3.2078,2673.9,2673.8,2.03534]
[1748439821739,3.95541,2673.9,2673.8,1.2877]
[1748439822131,0.74778,2673.3,2673.2,0.6233]
[1748439822338,3.95558,2673.3,2673.2,0.6233]
[1748439822535,3.2078,2673.3,2673.2,0.6233]
[1748439822735,3.2078,2673.3,2673.2,6.37111]
[1748439823138,3.2078,2673.3,2673.0,0.6453]
[1748439823331,3.2078,2673.3,2673.2,0.74781]
[1748439823737,3.2078,2673.3,2673.2,5.74781]
[1748439824133,3.95558,2673.3,2673.2,5.0]
[1748439824542,3.95558,2673.3,2673.2,5.74781]
[1748439825340,0.74781,2673.2,2673.1,0.74782]
[1748439825541,0.74781,2673.2,2673.1,1.2192]
[1748439825736,3.9556,2673.3,2673.1,1.2192]
[1748439825937,3.2078,2673.3,2673.2,0.74781]
[1748439826636,3.2078,2673.3,2673.1,1.96702]
[1748439826836,0.74781,2673.2,2673.1,1.2192]
[1748439827034,3.2078,2673.3,2672.3,2.53582]
[1748439827333,3.2078,2673.3,2672.2,1.87021]
[1748439827334,3.2078,2672.6,2672.1,2.49256]
[1748439827531,3.2078,2672.2,2672.1,1.37041]
[1748439827734,0.75359653,2672.6,2672.1,0.6223]
[1748439827944,3.2078,2672.2,2672.1,1.37041]
[1748439828239,3.2078,2672.5,2672.4,0.74803]
[1748439829136,3.2078,2672.5,2672.1,1.87023]
[1748439829342,3.2078,2672.2,2672.1,0.74811]
[1748439829737,0.74817,2672.0,2671.9,0.74816]
[1748439829934,0.74813,2672.1,2672.0,0.74813]
[1748439830244,0.74814,2672.1,2672.0,0.74813]
[1748439830445,3.2078,2672.2,2671.6,3.14531]
[1748439830639,3.2078,2671.7,2670.4,3.2078]
[1748439830843,3.2078,2671.2,2671.1,0.74839]
[1748439831238,3.2078,2671.2,2670.5,0.73379234]
[1748439831441,3.2078,2671.2,2670.5,0.82345234]
[1748439831442,3.2078,2670.6,2670.5,0.82345234]
[1748439831944,3.2078,2670.6,2670.5,5.82345234]
[1748439832841,3.2078,2670.9,2670.8,0.74848]
[1748439833245,10.07898,2670.9,2668.8,3.2078]
[1748439833442,3.2078,2669.9,2668.9,5.19893724]
[1748439833644,3.2078,2670.2,2669.1,3.2078]
[1748439833842,3.2078,2669.7,2669.6,0.74882]
[1748439834037,0.00561724,2669.9,2669.8,0.74876]
[1748439834239,3.21341724,2669.9,2669.8,0.74876]
[1748439834444,3.21341724,2669.9,2669.8,5.74876]
[1748439834644,3.2078,2670.3,2669.9,1.87181]
[1748439834838,3.2078,2670.3,2670.2,0.74865]
[1748439835742,3.2078,2670.3,2670.2,5.74865]
[1748439836548,3.2078,2670.3,2670.0,0.00561724]
[1748439836549,0.00561724,2670.5,2670.4,0.74859]
[1748439837052,0.00561724,2670.5,2670.0,1.87735724]
[1748439837053,0.75418724,2670.5,2670.0,0.00561724]
[1748439837239,3.95643,2670.3,2670.1,0.74866]
[1748439837554,3.2078,2670.3,2670.2,0.74865]
[1748439838946,0.11791724,2670.5,2670.4,0.74859]
[1748439839249,7.24e-06,2670.5,2670.4,0.74859]
[1748439840449,1.87155,2670.3,2669.7,0.74877]
[1748439840648,3.2078,2669.8,2669.7,0.74879]
[1748439841345,3.2078,2670.1,2670.0,0.7487]
[1748439842952,0.74872,2670.0,2669.8,1.3317]
[1748439843151,0.74871,2670.0,2669.9,0.74871]
[1748439843350,1.2968,2670.0,2669.5,0.00561724]
[1748439843554,3.2078,2669.6,2669.5,0.75445724]
[1748439843752,5.26000724,2670.5,2670.4,0.74859]
[1748439843949,0.74864,2670.3,2669.5,0.00561724]
[1748439844154,3.2078,2670.2,2670.1,0.74868]
[1748439845054,5.25316,2670.5,2670.4,0.74859]
[1748439845856,3.2078,2670.5,2670.4,0.74859]
[1748439846148,5.26561724,2670.7,2670.6,0.74853]
[1748439846353,8.47341724,2670.7,2670.6,0.74853]
[1748439846651,3.21341724,2670.7,2670.6,0.74853]
[1748439847151,3.21341724,2670.7,2670.2,1.3087]
[1748439847352,0.74861,2670.4,2670.2,1.3087]
[1748439847650,3.2078,2670.3,2670.0,0.07463908]
[1748439847849,4.5046,2670.3,2670.2,0.74865]
[1748439848051,4.5046,2670.3,2670.1,1.2415]
[1748439848348,4.5046,2670.3,2670.1,0.74866]
[1748439848551,4.5046,2670.3,2670.0,0.07463908]
[1748439848757,0.74866,2670.2,2670.1,0.74866]
[1748439848953,0.74866,2670.2,2670.0,0.07463908]
[1748439848954,0.74867,2670.1,2670.0,0.82331908]
[1748439849147,0.74867,2670.1,2670.0,0.07463908]
[1748439849456,0.74867,2670.1,2670.0,0.82333908]
[1748439849751,6.01067,2670.1,2670.0,0.07463908]
[1748439849952,5.262,2670.1,2670.0,0.82333908]
[1748439850457,1.2889,2670.1,2670.0,0.82333908]
[1748439850753,3.2078,2670.3,2670.2,0.74865]
[1748439851446,3.2078,2670.3,2670.0,0.07463908]
[1748439851652,0.74867,2670.1,2670.0,0.82332908]
[1748439851956,0.74867,2670.1,2669.5,0.00561724]
[1748439851957,0.74882,2669.6,2669.5,0.00561724]
[1748439852157,8.4698,2669.6,2668.2,1.2513]
[1748439852346,8.4698,2669.6,2668.3,0.74918]
[1748439852347,3.2078,2668.7,2668.3,0.74918]
[1748439852553,3.2078,2669.0,2668.4,1.2513]
[1748439852756,0.74896,2669.1,2668.4,3.12414]
[1748439852956,3.95676,2669.1,2668.9,0.74899]
[1748439853157,0.00561724,2669.0,2668.9,0.74899]
[1748439853661,0.00561724,2669.0,2668.9,0.74901]
[1748439853860,0.75461724,2669.0,2668.8,0.74903]
[1748439854055,1.30251724,2669.0,2668.5,0.6329]
[1748439854258,3.2078,2668.8,2668.7,0.74907]
[1748439854859,3.95685,2668.8,2668.6,0.74908]
[1748439855063,3.2078,2668.8,2668.1,0.3729]
[1748439855262,3.17501724,2669.0,2667.9,1.87322]
[1748439855263,3.2078,2668.5,2668.4,0.74915]
[1748439855660,3.2078,2668.5,2668.3,0.74917]
[1748439855964,4.5047,2668.5,2668.4,0.74915]
[1748439856661,0.74916,2668.4,2668.2,0.74919]
[1748439856865,7.54743013,2668.3,2666.9,3.2078]
[1748439857069,3.2078,2668.1,2668.0,0.74926]
[1748439857275,3.2078,2668.1,2667.1,1.87378]
[1748439857276,3.2078,2668.1,2667.3,3.2078]
[1748439857470,1.2969,2668.0,2667.0,3.821]
[1748439857775,3.2078,2667.4,2667.3,0.74946]
[1748439858162,3.95724,2667.4,2666.6,0.6557]
[1748439858372,3.2078,2667.4,2667.3,0.74946]
[1748439858977,0.00561724,2667.6,2667.5,0.7494]
[1748439859363,0.00561724,2667.6,2666.3,0.26407803]
[1748439859567,0.00561724,2667.6,2667.5,0.7494]
[1748439859874,0.00561724,2667.6,2667.1,1.87375]
[1748439859875,4.4598924,2667.7,2667.6,0.74938]
[1748439860269,4.4598924,2667.7,2667.2,1.87373]
[1748439860463,3.2078,2667.7,2667.6,0.74938]
[1748439860669,3.2078,2667.7,2667.4,0.00561724]
[1748439860977,3.95717,2667.7,2667.5,0.74938]
[1748439861166,0.74938,2667.6,2667.4,0.00561724]
[1748439861367,0.7494,2667.5,2667.4,0.00561724]
[1748439861581,0.74957,2667.0,2666.5,3.2078]
[1748439861770,2.54703,2667.4,2666.9,0.74956]
[1748439862071,2.54703,2667.4,2666.7,0.74961]
[1748439862072,3.2078,2667.0,2666.7,0.74961]
[1748439862272,3.2078,2667.0,2666.4,1.87426]
[1748439862472,3.2078,2666.7,2665.8,3.2078]
[1748439862779,3.2078,2667.1,2667.0,0.74955]
[1748439863463,3.2078,2667.1,2666.7,1.87404]
[1748439863464,0.00561724,2667.3,2667.2,0.74949]
[1748439863863,0.75507724,2667.3,2667.2,0.74949]
[1748439864067,0.00561724,2667.3,2667.2,0.74949]
[1748439864965,3.2078,2667.9,2667.8,0.74932]
[1748439866079,1.87284,2668.5,2668.0,0.74926]
[1748439866080,0.00561724,2668.1,2668.0,0.74926]
[1748439866284,7.24e-06,2668.1,2668.0,6.01526]
[1748439866577,3.22307,2669.1,2669.0,0.74898]
[1748439867371,3.2078,2669.7,2669.6,0.74881]
[1748439867568,3.28271478,2669.7,2669.6,0.74881]
[1748439867773,0.07491478,2669.7,2669.6,0.74881]
[1748439868171,3.3201,2670.5,2669.6,5.0]
[1748439868375,3.3201,2670.5,2670.4,0.74859]
[1748439868579,3.2078,2670.5,2669.9,5.266]
[1748439868773,3.2078,2670.5,2670.0,0.7487]
[1748439868981,3.2078,2670.8,2670.1,1.87169]
[1748439869180,3.2078,2671.1,2670.7,0.74849]
[1748439869482,3.2078,2670.8,2670.6,0.74853]
[1748439869671,3.2078,2670.8,2670.7,0.74851]
[1748439869874,3.2078,2671.1,2670.4,5.266]
[1748439870284,3.2078,2670.8,2670.7,0.74849]
[1748439870473,3.2078,2670.8,2670.4,5.266]
[1748439870474,0.74852,2670.7,2670.4,6.01358]
[1748439870679,0.1123,2671.0,2670.4,5.265]
[1748439870875,0.1123,2671.0,2670.9,0.74845]
[1748439871083,3.3201,2671.0,2670.9,0.74845]
[1748439871583,3.3201,2671.0,2670.6,1.261]
[1748439871584,0.74847,2670.9,2670.6,1.261]
[1748439871883,3.2078,2670.7,2670.6,1.261]
[1748439872081,3.2078,2670.7,2670.6,2.00953]
[1748439872275,0.1123,2671.0,2670.9,0.74845]
[1748439872276,3.3201,2671.0,2670.9,0.74845]
[1748439872583,3.3201,2671.0,2670.7,0.74849]
[1748439872888,3.3201,2671.0,2670.9,0.74845]
[1748439873189,0.74848,2670.8,2670.7,1.3101]
[1748439873480,0.74809,2672.2,2670.7,7.3091]
[1748439873680,3.2078,2672.5,2671.7,3.2078]
[1748439873877,0.74817,2671.9,2671.8,1.3101]
[1748439874078,41.54817,2671.9,2671.8,1.3101]
[1748439874680,0.74817,2671.9,2671.8,1.3101]
[1748439875283,41.55373724,2672.1,2671.8,1.3101]
[1748439875489,0.00561724,2672.1,2671.9,0.74816]
[1748439875791,0.75372724,2672.1,2672.0,1.3101]
[1748439876787,3.96152724,2672.1,2672.0,1.3101]
[1748439877182,0.75372724,2672.1,2672.0,1.3101]
[1748439877384,0.74823,2671.7,2671.6,0.00561724]
[1748439877876,3.2078,2671.8,2671.6,0.00561724]
[1748439878082,0.00561724,2672.1,2671.6,3.21341724]
[1748439878384,0.74821,2671.8,2671.7,1.2702]
[1748439879280,0.00561724,2672.1,2671.7,4.478]
[1748439879486,0.1122,2672.3,2672.0,3.2078]
[1748439879681,0.74809,2672.2,2672.1,1.2938]
[1748439880479,2.02039,2672.2,2672.1,1.2938]
[1748439880786,1.87035,2672.1,2671.6,0.00561724]
[1748439881087,3.95603,2671.7,2671.6,0.00561724]
[1748439881279,0.74823,2671.7,2671.6,0.00561724]
[1748439883487,5.179,2671.9,2671.6,3.96165724]
[1748439883685,0.7482,2671.8,2671.7,1.2359]
[1748439884984,0.74823,2671.7,2671.6,7.24e-06]
[1748439885292,2.02003,2671.7,2671.6,7.24e-06]
[1748439885583,7.02003,2671.7,2671.6,7.24e-06]
[1748439887087,2.02003,2671.7,2671.6,7.24e-06]
[1748439887292,0.74823,2671.7,2671.6,7.24e-06]
[1748439889398,2.02093,2671.7,2671.6,7.24e-06]
[1748439890195,2.02093,2671.7,2671.6,0.07464632]
[1748439891194,2.02093,2671.7,2671.6,6.32e-06]
[1748439891395,7.02093,2671.7,2671.6,6.32e-06]
[1748439891801,2.02093,2671.7,2671.6,6.32e-06]
[1748439892188,7.19993,2671.7,2671.6,6.32e-06]
[1748439893194,0.74823,2671.7,2671.6,6.32e-06]
[1748439893399,5.92723,2671.7,2671.6,6.32e-06]
[1748439894098,0.74823,2671.7,2671.6,6.32e-06]
[1748439894296,5.92723,2671.7,2671.6,6.32e-06]
[1748439894496,7.15533,2671.7,2671.6,6.32e-06]
[1748439895098,12.15533,2671.7,2671.6,6.32e-06]
[1748439895494,10.36313,2671.7,2671.6,6.32e-06]
[1748439895799,5.92723,2671.7,2671.6,6.32e-06]
[1748439896191,0.74821,2671.8,2671.6,6.32e-06]
[1748439896393,0.74821,2671.8,2671.7,0.74823]
[1748439896600,5.92715,2672.0,2671.7,4.5118]
[1748439896794,0.74815,2672.0,2671.9,0.74817]
[1748439896995,1.98239,2672.3,2671.8,1.3128]
[1748439896996,1.87024,2672.2,2671.8,1.3128]
[1748439897295,0.74817,2671.9,2671.8,1.3128]
[1748439898893,5.92717,2671.9,2671.8,1.3128]
[1748439900797,0.74817,2671.9,2671.8,1.3128]
[1748439901195,0.74817,2671.9,2671.8,0.39617]
[1748439901391,0.74823,2671.7,2671.6,6.32e-06]
[1748439901599,0.74828,2671.5,2671.4,3.56e-06]
[1748439901895,10.01805467,2671.5,2671.4,3.56e-06]
[1748439902598,9.05308,2671.5,2671.4,3.56e-06]
[1748439904307,5.84528,2671.5,2671.4,0.07464264]
[1748439904497,10.01826616,2671.5,2671.4,0.07464264]
[1748439904902,4.92126616,2671.5,2671.4,0.07464264]
[1748439905099,0.74828,2671.5,2671.4,0.07464264]
[1748439905999,6.96741,2672.0,2671.6,0.74825]
[1748439906199,0.7482,2671.8,2671.7,1.3408]
[1748439906604,0.7482,2671.8,2671.4,0.07464264]
[1748439906605,0.74829,2671.5,2671.4,0.07464264]
[1748439906801,9.24934193,2671.5,2671.4,2.64e-06]
[1748439907511,93.74360459,2671.5,2671.4,2.64e-06]
[1748439907807,93.74360459,2671.5,2670.0,3.2078]
[1748439907808,0.74834,2671.3,2671.2,9.88e-06]
[1748439908004,95.08492965,2671.5,2670.0,0.6221]
[1748439908005,0.74868,2670.1,2670.0,0.6221]
[1748439908202,0.74876,2669.8,2669.7,5.89976502]
[1748439908506,0.74871,2670.0,2669.7,4.55896502]
[1748439908699,0.74871,2670.0,2669.8,0.74875]
[1748439908900,6.42052,2670.5,2669.8,0.74875]
[1748439909101,0.74876,2669.9,2669.7,5.30774502]
[1748439909404,0.74876,2669.8,2669.7,4.55896502]
[1748439909600,0.74876,2669.9,2669.7,3.95658]
[1748439909900,0.74875,2669.9,2669.7,3.95659]
[1748439910800,5.10361724,2670.4,2669.7,8.2078]
[1748439910998,5.10361724,2670.4,2670.3,0.74862]
[1748439911203,0.00561724,2670.4,2670.3,0.74862]
[1748439911404,0.00561724,2670.4,2670.1,2.00956]
[1748439911610,0.00561724,2670.4,2670.1,1.2609]
[1748439911903,0.74865,2670.2,2670.1,1.2609]
[1748439912305,0.74875,2669.9,2669.7,3.2078]
[1748439912605,3.2078,2670.2,2669.7,3.2078]
[1748439912914,0.00561724,2670.4,2670.3,0.74862]
[1748439913206,0.75421724,2670.4,2670.0,3.2078]
[1748439913411,0.00561724,2670.4,2670.3,3.95642]
[1748439913802,0.00561724,2670.4,2670.3,8.95642]
[1748439914403,5.10361724,2670.4,2669.7,1.35116502]
[1748439914598,3.2078,2670.1,2669.6,0.6394]
[1748439914806,5.10361724,2670.4,2669.9,0.74872]
[1748439914996,0.74869,2670.1,2669.9,0.74871]
[1748439915202,0.00561724,2670.4,2669.6,0.6394]
[1748439915500,0.74875,2669.9,2669.7,0.74876]
[1748439916099,0.74873,2670.0,2669.6,0.6394]
[1748439916611,0.74873,2669.9,2669.6,0.6394]
[1748439916801,0.74873,2669.9,2669.8,0.74874]
[1748439917206,0.74878,2669.8,2669.7,0.74877]
[1748439917514,0.74878,2669.8,2669.6,0.6394]
[1748439917515,0.74875,2669.9,2669.8,0.74873]
[1748439918013,3.95647,2670.2,2670.1,0.74868]
[1748439918305,0.00561724,2670.4,2669.8,3.2078]
[1748439918512,0.74872,2670.0,2669.9,0.74872]
[1748439919415,0.74869,2670.1,2670.0,0.74869]
[1748439919606,3.21341724,2670.4,2669.8,3.2078]
[1748439919804,0.74879,2669.7,2669.6,1.3882]
[1748439920001,0.74879,2669.7,2669.6,0.6394]
[1748439920401,0.74882,2669.6,2669.5,0.00561724]
[1748439920601,2.08602,2669.6,2669.5,7.24e-06]
[1748439920817,7.08602,2669.6,2669.5,7.24e-06]
[1748439921006,7.71702,2669.6,2669.5,7.24e-06]
[1748439921812,7.71702,2669.6,2667.7,1.35116502]
[1748439921813,1.87279,2668.6,2668.0,1.2737]